Workbook

Sheet راس گیری چک
B2: در این قسمت تاریخ و مبلغ خرید یا فروش را وارد نمایید. | M2: در این قسمت تاریخ و مبلغ چک های دریافتی یا پرداختی را وارد نمایید.
B4: تاریخ امروز | C4: =shamsi() -> 1404/07/21 | D4: تعداد روز مورد قبول | I4: -60 | J4: =IF(ABS(I5)<=ABS(I4),"تایید","رد") -> تایید | M4: تاریخ امروز | N4: =shamsi() -> 1404/07/21 | O4: تعداد روز مورد قبول | T4: 30 | U4: =IF(ABS(T5)<=ABS(T4),"تایید","رد") -> تایید
C5: تاریخ مبنا | D5: جمع | E5: =SUM(E8:E510) -> 7712724200 | I5: =H7/E5 -> -31.38739518 | J5: راس | N5: تاریخ مبنا | O5: جمع | P5: =SUM(P8:P509) -> 5520000000 | T5: =S7/P5 -> 17.48188406 | U5: راس
B6: شمسی | C6: 14040721 | I6: =C7+I5 -> 2025-09-11T14:42:09.056 | M6: شمسی | N6: 14040721 | T6: =N7+T5 -> 2025-10-30T11:33:54.783
B7: میلادی | C7: =ShamsiToMiladi(C6) -> 2025/10/13 | D7: تاریخ | E7: مبلغ | F7: اختلاف با تاریخ محاسبه | G7: Column4 | H7: =SUM(G8:G500) -> -242082322400 | I7: =I5/30 -> -1.046246506 | J7: ماه | M7: میلادی | N7: =ShamsiToMiladi(N6) -> 2025/10/13 | O7: تاریخ | P7: مبلغ | Q7: اختلاف با تاریخ محاسبه | R7: Column4 | S7: =SUM(R8:R250) -> 96500000000 | T7: =T5/30 -> 0.5827294686 | U7: ماه
D8: 14040611 | E8: 820380000 | F8: =IF(OR(tarikh="",D8=""), "", Diff(tarikh,D8 )) -> -41 | G8: =F8*E8 -> -33635580000 | O8: 14040725 | P8: 720000000 | Q8: =IF(OR(tarihk2="",'راس گیری چک'!$O8=""), "", Diff(tarihk2,'راس گیری چک'!$O8)) -> 4 | R8: =Q8*P8 -> 2880000000
D9: 14040617 | E9: 928700000 | F9: =IF(OR(tarikh="",D9=""), "", Diff(tarikh,D9 )) -> -35 | G9: =F9*E9 -> -32504500000 | J9: 14040621 | L9: تاریخ اول | O9: 14040728 | P9: 160000000 | Q9: =IF(OR(tarihk2="",'راس گیری چک'!$O9=""), "", Diff(tarihk2,'راس گیری چک'!$O9)) -> 7 | R9: 1120000000
B10: =I5 -> -31.38739518 | C10: راس | D10: 14040620 | E10: 1159845000 | F10: =IF(OR(tarikh="",D10=""), "", Diff(tarikh,D10 )) -> -32 | G10: =F10*E10 -> -37115040000 | J10: 14040808 | L10: تاریخ دوم | O10: 14040730 | P10: 600000000 | Q10: =IF(OR(tarihk2="",'راس گیری چک'!$O10=""), "", Diff(tarihk2,'راس گیری چک'!$O10)) -> 9 | R10: 5400000000 | AA10: 2 | AB10: 2
B11: 0.2 | D11: 14040620 | E11: 1223028200 | F11: =IF(OR(tarikh="",D11=""), "", Diff(tarikh,D11 )) -> -32 | G11: =F11*E11 -> -39136902400 | J11: =Diff(J10,J9) -> -48 | L11: اختلاف تاریخ | O11: 14040730 | P11: 630000000 | Q11: =IF(OR(tarihk2="",'راس گیری چک'!$O11=""), "", Diff(tarihk2,'راس گیری چک'!$O11)) -> 9 | R11: 5670000000 | AA11: 2 | AB11: 2
B12: =E5 * 0.2% -> 15425448.4 | C12: درصد مابه تفاوت | D12: 14040627 | E12: 404976000 | F12: =IF(OR(tarikh="",D12=""), "", Diff(tarikh,D12 )) -> -25 | G12: -10124400000 | J12: 0.2 | L12: درصد محاسبه | O12: 14040808 | P12: 630000000 | Q12: =IF(OR(tarihk2="",'راس گیری چک'!$O12=""), "", Diff(tarihk2,'راس گیری چک'!$O12)) -> 17 | R12: 10710000000 | AA12: 2 | AB12: 2
B13: =B10*B12 -> -484164644.8 | C13: جمع مابه تفاوت | D13: 14040701 | E13: 1275795000 | F13: =IF(OR(tarikh="",D13=""), "", Diff(tarikh,D13 )) -> -20 | G13: -25515900000 | J13: =P5 * 0.2% -> 11040000 | L13: مبلغ درصد مابه تفاوت روزانه | O13: 14040808 | P13: 150000000 | Q13: =IF(OR(tarihk2="",'راس گیری چک'!$O13=""), "", Diff(tarihk2,'راس گیری چک'!$O13)) -> 17 | R13: 2550000000 | AA13: 2 | AB13: 2
B14: =ABS(SUM(E5)+ABS(SUM(B13))) -> 8196888845 | C14: جمع بد یا بس | D14: 14040610 | E14: 850000000 | F14: =IF(OR(tarikh="",D14=""), "", Diff(tarikh,D14 )) -> -42 | G14: -35700000000 | J14: =J13*J11 -> -529920000 | L14: جمع مابه تفاوت | O14: 14040810 | P14: 600000000 | Q14: =IF(OR(tarihk2="",'راس گیری چک'!$O14=""), "", Diff(tarihk2,'راس گیری چک'!$O14)) -> 19 | R14: 11400000000
D15: 14040625 | E15: 1050000000 | F15: =IF(OR(tarikh="",D15=""), "", Diff(tarikh,D15 )) -> -27 | G15: -28350000000 | I15: با عرض سلام و احترام قبل از استفاده حتما فیلم اموزش رو ببینید. استفاده شخصی با ذکر صلوات برای سلامتی امام زمان (عج) رایگان می باشد. شماره تماس: 09052881958 شماره کارت جهت حمایت و تولید برنامه ها 6104-3379-1832-8368 علی حسن پیروزبهر | O15: 14040810 | P15: 670000000 | Q15: =IF(OR(tarihk2="",'راس گیری چک'!$O15=""), "", Diff(tarihk2,'راس گیری چک'!$O15)) -> 19 | R15: 12730000000
D16: 0 | E16: 0 | F16: =IF(OR(tarikh="",D16=""), "", Diff(tarikh,D16 )) -> 0 | G16: 0 | O16: 14040815 | P16: 600000000 | Q16: =IF(OR(tarihk2="",'راس گیری چک'!$O16=""), "", Diff(tarihk2,'راس گیری چک'!$O16)) -> 24 | R16: 14400000000
D17: 0 | E17: 0 | F17: =IF(OR(tarikh="",D17=""), "", Diff(tarikh,D17 )) -> 0 | G17: 0 | O17: 14040830 | P17: 760000000 | Q17: =IF(OR(tarihk2="",'راس گیری چک'!$O17=""), "", Diff(tarihk2,'راس گیری چک'!$O17)) -> 39 | R17: 29640000000
F18: =IF(OR(tarikh="",D18=""), "", Diff(tarikh,D18 )) ->  | O18: 0 | P18: 0 | Q18: =IF(OR(tarihk2="",'راس گیری چک'!$O18=""), "", Diff(tarihk2,'راس گیری چک'!$O18)) -> 0 | R18: 0
F19: =IF(OR(tarikh="",D19=""), "", Diff(tarikh,D19 )) ->  | Q19: =IF(OR(tarihk2="",'راس گیری چک'!$O19=""), "", Diff(tarihk2,'راس گیری چک'!$O19)) -> 
F20: =IF(OR(tarikh="",D20=""), "", Diff(tarikh,D20 )) ->  | Q20: =IF(OR(tarihk2="",'راس گیری چک'!$O20=""), "", Diff(tarihk2,'راس گیری چک'!$O20)) -> 
F21: =IF(OR(tarikh="",D21=""), "", Diff(tarikh,D21 )) ->  | Q21: =IF(OR(tarihk2="",'راس گیری چک'!$O21=""), "", Diff(tarihk2,'راس گیری چک'!$O21)) -> 
F22: =IF(OR(tarikh="",D22=""), "", Diff(tarikh,D22 )) ->  | Q22: =IF(OR(tarihk2="",'راس گیری چک'!$O22=""), "", Diff(tarihk2,'راس گیری چک'!$O22)) -> 
F23: =IF(OR(tarikh="",D23=""), "", Diff(tarikh,D23 )) ->  | I23: استفاده تجاری رایگان نمی باشد و جهت خرید و فعال کردن بی نهایت تماس حاصل فرمایید | Q23: =IF(OR(tarihk2="",'راس گیری چک'!$O23=""), "", Diff(tarihk2,'راس گیری چک'!$O23)) -> 
F24: =IF(OR(tarikh="",D24=""), "", Diff(tarikh,D24 )) ->  | Q24: =IF(OR(tarihk2="",'راس گیری چک'!$O24=""), "", Diff(tarihk2,'راس گیری چک'!$O24)) -> 
F25: =IF(OR(tarikh="",D25=""), "", Diff(tarikh,D25 )) ->  | Q25: =IF(OR(tarihk2="",'راس گیری چک'!$O25=""), "", Diff(tarihk2,'راس گیری چک'!$O25)) -> 
F26: =IF(OR(tarikh="",D26=""), "", Diff(tarikh,D26 )) ->  | Q26: =IF(OR(tarihk2="",'راس گیری چک'!$O26=""), "", Diff(tarihk2,'راس گیری چک'!$O26)) -> 
F27: =IF(OR(tarikh="",D27=""), "", Diff(tarikh,D27 )) ->  | Q27: =IF(OR(tarihk2="",'راس گیری چک'!$O27=""), "", Diff(tarihk2,'راس گیری چک'!$O27)) -> 
F28: =IF(OR(tarikh="",D28=""), "", Diff(tarikh,D28 )) ->  | Q28: =IF(OR(tarihk2="",'راس گیری چک'!$O28=""), "", Diff(tarihk2,'راس گیری چک'!$O28)) -> 
F29: =IF(OR(tarikh="",D29=""), "", Diff(tarikh,D29 )) ->  | Q29: =IF(OR(tarihk2="",'راس گیری چک'!$O29=""), "", Diff(tarihk2,'راس گیری چک'!$O29)) -> 
F30: =IF(OR(tarikh="",D30=""), "", Diff(tarikh,D30 )) ->  | Q30: =IF(OR(tarihk2="",'راس گیری چک'!$O30=""), "", Diff(tarihk2,'راس گیری چک'!$O30)) -> 
F31: =IF(OR(tarikh="",D31=""), "", Diff(tarikh,D31 )) ->  | Q31: =IF(OR(tarihk2="",'راس گیری چک'!$O31=""), "", Diff(tarihk2,'راس گیری چک'!$O31)) -> 
F32: =IF(OR(tarikh="",D32=""), "", Diff(tarikh,D32 )) ->  | Q32: =IF(OR(tarihk2="",'راس گیری چک'!$O32=""), "", Diff(tarihk2,'راس گیری چک'!$O32)) -> 
F33: =IF(OR(tarikh="",D33=""), "", Diff(tarikh,D33 )) ->  | Q33: =IF(OR(tarihk2="",'راس گیری چک'!$O33=""), "", Diff(tarihk2,'راس گیری چک'!$O33)) -> 
F34: =IF(OR(tarikh="",D34=""), "", Diff(tarikh,D34 )) ->  | Q34: =IF(OR(tarihk2="",'راس گیری چک'!$O34=""), "", Diff(tarihk2,'راس گیری چک'!$O34)) -> 
F35: =IF(OR(tarikh="",D35=""), "", Diff(tarikh,D35 )) ->  | Q35: =IF(OR(tarihk2="",'راس گیری چک'!$O35=""), "", Diff(tarihk2,'راس گیری چک'!$O35)) -> 
F36: =IF(OR(tarikh="",D36=""), "", Diff(tarikh,D36 )) ->  | Q36: =IF(OR(tarihk2="",'راس گیری چک'!$O36=""), "", Diff(tarihk2,'راس گیری چک'!$O36)) -> 
F37: =IF(OR(tarikh="",D37=""), "", Diff(tarikh,D37 )) ->  | Q37: =IF(OR(tarihk2="",'راس گیری چک'!$O37=""), "", Diff(tarihk2,'راس گیری چک'!$O37)) -> 
F38: =IF(OR(tarikh="",D38=""), "", Diff(tarikh,D38 )) ->  | Q38: =IF(OR(tarihk2="",'راس گیری چک'!$O38=""), "", Diff(tarihk2,'راس گیری چک'!$O38)) -> 
F39: =IF(OR(tarikh="",D39=""), "", Diff(tarikh,D39 )) ->  | Q39: =IF(OR(tarihk2="",'راس گیری چک'!$O39=""), "", Diff(tarihk2,'راس گیری چک'!$O39)) -> 
F40: =IF(OR(tarikh="",D40=""), "", Diff(tarikh,D40 )) ->  | Q40: =IF(OR(tarihk2="",'راس گیری چک'!$O40=""), "", Diff(tarihk2,'راس گیری چک'!$O40)) -> 
F41: =IF(OR(tarikh="",D41=""), "", Diff(tarikh,D41 )) ->  | Q41: =IF(OR(tarihk2="",'راس گیری چک'!$O41=""), "", Diff(tarihk2,'راس گیری چک'!$O41)) -> 
F42: =IF(OR(tarikh="",D42=""), "", Diff(tarikh,D42 )) ->  | Q42: =IF(OR(tarihk2="",'راس گیری چک'!$O42=""), "", Diff(tarihk2,'راس گیری چک'!$O42)) -> 
F43: =IF(OR(tarikh="",D43=""), "", Diff(tarikh,D43 )) ->  | Q43: =IF(OR(tarihk2="",'راس گیری چک'!$O43=""), "", Diff(tarihk2,'راس گیری چک'!$O43)) -> 
F44: =IF(OR(tarikh="",D44=""), "", Diff(tarikh,D44 )) ->  | Q44: =IF(OR(tarihk2="",'راس گیری چک'!$O44=""), "", Diff(tarihk2,'راس گیری چک'!$O44)) -> 
F45: =IF(OR(tarikh="",D45=""), "", Diff(tarikh,D45 )) ->  | Q45: =IF(OR(tarihk2="",'راس گیری چک'!$O45=""), "", Diff(tarihk2,'راس گیری چک'!$O45)) -> 
F46: =IF(OR(tarikh="",D46=""), "", Diff(tarikh,D46 )) ->  | Q46: =IF(OR(tarihk2="",'راس گیری چک'!$O46=""), "", Diff(tarihk2,'راس گیری چک'!$O46)) -> 
F47: =IF(OR(tarikh="",D47=""), "", Diff(tarikh,D47 )) ->  | Q47: =IF(OR(tarihk2="",'راس گیری چک'!$O47=""), "", Diff(tarihk2,'راس گیری چک'!$O47)) -> 
F48: =IF(OR(tarikh="",D48=""), "", Diff(tarikh,D48 )) ->  | Q48: =IF(OR(tarihk2="",'راس گیری چک'!$O48=""), "", Diff(tarihk2,'راس گیری چک'!$O48)) -> 
F49: =IF(OR(tarikh="",D49=""), "", Diff(tarikh,D49 )) ->  | Q49: =IF(OR(tarihk2="",'راس گیری چک'!$O49=""), "", Diff(tarihk2,'راس گیری چک'!$O49)) -> 
F50: =IF(OR(tarikh="",D50=""), "", Diff(tarikh,D50 )) ->  | Q50: =IF(OR(tarihk2="",'راس گیری چک'!$O50=""), "", Diff(tarihk2,'راس گیری چک'!$O50)) -> 
F51: =IF(OR(tarikh="",D51=""), "", Diff(tarikh,D51 )) ->  | Q51: =IF(OR(tarihk2="",'راس گیری چک'!$O51=""), "", Diff(tarihk2,'راس گیری چک'!$O51)) -> 
F52: =IF(OR(tarikh="",D52=""), "", Diff(tarikh,D52 )) ->  | Q52: =IF(OR(tarihk2="",'راس گیری چک'!$O52=""), "", Diff(tarihk2,'راس گیری چک'!$O52)) -> 
F53: =IF(OR(tarikh="",D53=""), "", Diff(tarikh,D53 )) ->  | Q53: =IF(OR(tarihk2="",'راس گیری چک'!$O53=""), "", Diff(tarihk2,'راس گیری چک'!$O53)) -> 
F54: =IF(OR(tarikh="",D54=""), "", Diff(tarikh,D54 )) ->  | Q54: =IF(OR(tarihk2="",'راس گیری چک'!$O54=""), "", Diff(tarihk2,'راس گیری چک'!$O54)) -> 
F55: =IF(OR(tarikh="",D55=""), "", Diff(tarikh,D55 )) ->  | Q55: =IF(OR(tarihk2="",'راس گیری چک'!$O55=""), "", Diff(tarihk2,'راس گیری چک'!$O55)) -> 
F56: =IF(OR(tarikh="",D56=""), "", Diff(tarikh,D56 )) ->  | Q56: =IF(OR(tarihk2="",'راس گیری چک'!$O56=""), "", Diff(tarihk2,'راس گیری چک'!$O56)) -> 
F57: =IF(OR(tarikh="",D57=""), "", Diff(tarikh,D57 )) ->  | Q57: =IF(OR(tarihk2="",'راس گیری چک'!$O57=""), "", Diff(tarihk2,'راس گیری چک'!$O57)) -> 
F58: =IF(OR(tarikh="",D58=""), "", Diff(tarikh,D58 )) ->  | Q58: =IF(OR(tarihk2="",'راس گیری چک'!$O58=""), "", Diff(tarihk2,'راس گیری چک'!$O58)) -> 
F59: =IF(OR(tarikh="",D59=""), "", Diff(tarikh,D59 )) ->  | Q59: =IF(OR(tarihk2="",'راس گیری چک'!$O59=""), "", Diff(tarihk2,'راس گیری چک'!$O59)) -> 
F60: =IF(OR(tarikh="",D60=""), "", Diff(tarikh,D60 )) ->  | Q60: =IF(OR(tarihk2="",'راس گیری چک'!$O60=""), "", Diff(tarihk2,'راس گیری چک'!$O60)) -> 
F61: =IF(OR(tarikh="",D61=""), "", Diff(tarikh,D61 )) ->  | Q61: =IF(OR(tarihk2="",'راس گیری چک'!$O61=""), "", Diff(tarihk2,'راس گیری چک'!$O61)) -> 
F62: =IF(OR(tarikh="",D62=""), "", Diff(tarikh,D62 )) ->  | Q62: =IF(OR(tarihk2="",'راس گیری چک'!$O62=""), "", Diff(tarihk2,'راس گیری چک'!$O62)) -> 
F63: =IF(OR(tarikh="",D63=""), "", Diff(tarikh,D63 )) ->  | Q63: =IF(OR(tarihk2="",'راس گیری چک'!$O63=""), "", Diff(tarihk2,'راس گیری چک'!$O63)) -> 
F64: =IF(OR(tarikh="",D64=""), "", Diff(tarikh,D64 )) ->  | Q64: =IF(OR(tarihk2="",'راس گیری چک'!$O64=""), "", Diff(tarihk2,'راس گیری چک'!$O64)) -> 
F65: =IF(OR(tarikh="",D65=""), "", Diff(tarikh,D65 )) ->  | Q65: =IF(OR(tarihk2="",'راس گیری چک'!$O65=""), "", Diff(tarihk2,'راس گیری چک'!$O65)) -> 
F66: =IF(OR(tarikh="",D66=""), "", Diff(tarikh,D66 )) ->  | Q66: =IF(OR(tarihk2="",'راس گیری چک'!$O66=""), "", Diff(tarihk2,'راس گیری چک'!$O66)) -> 
F67: =IF(OR(tarikh="",D67=""), "", Diff(tarikh,D67 )) ->  | Q67: =IF(OR(tarihk2="",'راس گیری چک'!$O67=""), "", Diff(tarihk2,'راس گیری چک'!$O67)) -> 
F68: =IF(OR(tarikh="",D68=""), "", Diff(tarikh,D68 )) ->  | Q68: =IF(OR(tarihk2="",'راس گیری چک'!$O68=""), "", Diff(tarihk2,'راس گیری چک'!$O68)) -> 
F69: =IF(OR(tarikh="",D69=""), "", Diff(tarikh,D69 )) ->  | Q69: =IF(OR(tarihk2="",'راس گیری چک'!$O69=""), "", Diff(tarihk2,'راس گیری چک'!$O69)) -> 
F70: =IF(OR(tarikh="",D70=""), "", Diff(tarikh,D70 )) ->  | Q70: =IF(OR(tarihk2="",'راس گیری چک'!$O70=""), "", Diff(tarihk2,'راس گیری چک'!$O70)) -> 
F71: =IF(OR(tarikh="",D71=""), "", Diff(tarikh,D71 )) ->  | Q71: =IF(OR(tarihk2="",'راس گیری چک'!$O71=""), "", Diff(tarihk2,'راس گیری چک'!$O71)) -> 
F72: =IF(OR(tarikh="",D72=""), "", Diff(tarikh,D72 )) ->  | Q72: =IF(OR(tarihk2="",'راس گیری چک'!$O72=""), "", Diff(tarihk2,'راس گیری چک'!$O72)) -> 
F73: =IF(OR(tarikh="",D73=""), "", Diff(tarikh,D73 )) ->  | Q73: =IF(OR(tarihk2="",'راس گیری چک'!$O73=""), "", Diff(tarihk2,'راس گیری چک'!$O73)) -> 
F74: =IF(OR(tarikh="",D74=""), "", Diff(tarikh,D74 )) ->  | Q74: =IF(OR(tarihk2="",'راس گیری چک'!$O74=""), "", Diff(tarihk2,'راس گیری چک'!$O74)) -> 
F75: =IF(OR(tarikh="",D75=""), "", Diff(tarikh,D75 )) ->  | Q75: =IF(OR(tarihk2="",'راس گیری چک'!$O75=""), "", Diff(tarihk2,'راس گیری چک'!$O75)) -> 
F76: =IF(OR(tarikh="",D76=""), "", Diff(tarikh,D76 )) ->  | Q76: =IF(OR(tarihk2="",'راس گیری چک'!$O76=""), "", Diff(tarihk2,'راس گیری چک'!$O76)) -> 
F77: =IF(OR(tarikh="",D77=""), "", Diff(tarikh,D77 )) ->  | Q77: =IF(OR(tarihk2="",'راس گیری چک'!$O77=""), "", Diff(tarihk2,'راس گیری چک'!$O77)) -> 
F78: =IF(OR(tarikh="",D78=""), "", Diff(tarikh,D78 )) ->  | Q78: =IF(OR(tarihk2="",'راس گیری چک'!$O78=""), "", Diff(tarihk2,'راس گیری چک'!$O78)) -> 
F79: =IF(OR(tarikh="",D79=""), "", Diff(tarikh,D79 )) ->  | Q79: =IF(OR(tarihk2="",'راس گیری چک'!$O79=""), "", Diff(tarihk2,'راس گیری چک'!$O79)) -> 
F80: =IF(OR(tarikh="",D80=""), "", Diff(tarikh,D80 )) ->  | Q80: =IF(OR(tarihk2="",'راس گیری چک'!$O80=""), "", Diff(tarihk2,'راس گیری چک'!$O80)) -> 
F81: =IF(OR(tarikh="",D81=""), "", Diff(tarikh,D81 )) ->  | Q81: =IF(OR(tarihk2="",'راس گیری چک'!$O81=""), "", Diff(tarihk2,'راس گیری چک'!$O81)) -> 
F82: =IF(OR(tarikh="",D82=""), "", Diff(tarikh,D82 )) ->  | Q82: =IF(OR(tarihk2="",'راس گیری چک'!$O82=""), "", Diff(tarihk2,'راس گیری چک'!$O82)) -> 
F83: =IF(OR(tarikh="",D83=""), "", Diff(tarikh,D83 )) ->  | Q83: =IF(OR(tarihk2="",'راس گیری چک'!$O83=""), "", Diff(tarihk2,'راس گیری چک'!$O83)) -> 
F84: =IF(OR(tarikh="",D84=""), "", Diff(tarikh,D84 )) ->  | Q84: =IF(OR(tarihk2="",'راس گیری چک'!$O84=""), "", Diff(tarihk2,'راس گیری چک'!$O84)) -> 
F85: =IF(OR(tarikh="",D85=""), "", Diff(tarikh,D85 )) ->  | Q85: =IF(OR(tarihk2="",'راس گیری چک'!$O85=""), "", Diff(tarihk2,'راس گیری چک'!$O85)) -> 
F86: =IF(OR(tarikh="",D86=""), "", Diff(tarikh,D86 )) ->  | Q86: =IF(OR(tarihk2="",'راس گیری چک'!$O86=""), "", Diff(tarihk2,'راس گیری چک'!$O86)) -> 
F87: =IF(OR(tarikh="",D87=""), "", Diff(tarikh,D87 )) ->  | Q87: =IF(OR(tarihk2="",'راس گیری چک'!$O87=""), "", Diff(tarihk2,'راس گیری چک'!$O87)) -> 
F88: =IF(OR(tarikh="",D88=""), "", Diff(tarikh,D88 )) ->  | Q88: =IF(OR(tarihk2="",'راس گیری چک'!$O88=""), "", Diff(tarihk2,'راس گیری چک'!$O88)) -> 
F89: =IF(OR(tarikh="",D89=""), "", Diff(tarikh,D89 )) ->  | Q89: =IF(OR(tarihk2="",'راس گیری چک'!$O89=""), "", Diff(tarihk2,'راس گیری چک'!$O89)) -> 
F90: =IF(OR(tarikh="",D90=""), "", Diff(tarikh,D90 )) ->  | Q90: =IF(OR(tarihk2="",'راس گیری چک'!$O90=""), "", Diff(tarihk2,'راس گیری چک'!$O90)) -> 
F91: =IF(OR(tarikh="",D91=""), "", Diff(tarikh,D91 )) ->  | Q91: =IF(OR(tarihk2="",'راس گیری چک'!$O91=""), "", Diff(tarihk2,'راس گیری چک'!$O91)) -> 
F92: =IF(OR(tarikh="",D92=""), "", Diff(tarikh,D92 )) ->  | Q92: =IF(OR(tarihk2="",'راس گیری چک'!$O92=""), "", Diff(tarihk2,'راس گیری چک'!$O92)) -> 
F93: =IF(OR(tarikh="",D93=""), "", Diff(tarikh,D93 )) ->  | Q93: =IF(OR(tarihk2="",'راس گیری چک'!$O93=""), "", Diff(tarihk2,'راس گیری چک'!$O93)) -> 
F94: =IF(OR(tarikh="",D94=""), "", Diff(tarikh,D94 )) ->  | Q94: =IF(OR(tarihk2="",'راس گیری چک'!$O94=""), "", Diff(tarihk2,'راس گیری چک'!$O94)) -> 
F95: =IF(OR(tarikh="",D95=""), "", Diff(tarikh,D95 )) ->  | Q95: =IF(OR(tarihk2="",'راس گیری چک'!$O95=""), "", Diff(tarihk2,'راس گیری چک'!$O95)) -> 
F96: =IF(OR(tarikh="",D96=""), "", Diff(tarikh,D96 )) ->  | Q96: =IF(OR(tarihk2="",'راس گیری چک'!$O96=""), "", Diff(tarihk2,'راس گیری چک'!$O96)) -> 
F97: =IF(OR(tarikh="",D97=""), "", Diff(tarikh,D97 )) ->  | Q97: =IF(OR(tarihk2="",'راس گیری چک'!$O97=""), "", Diff(tarihk2,'راس گیری چک'!$O97)) -> 
F98: =IF(OR(tarikh="",D98=""), "", Diff(tarikh,D98 )) ->  | Q98: =IF(OR(tarihk2="",'راس گیری چک'!$O98=""), "", Diff(tarihk2,'راس گیری چک'!$O98)) -> 
F99: =IF(OR(tarikh="",D99=""), "", Diff(tarikh,D99 )) ->  | Q99: =IF(OR(tarihk2="",'راس گیری چک'!$O99=""), "", Diff(tarihk2,'راس گیری چک'!$O99)) -> 
F100: =IF(OR(tarikh="",D100=""), "", Diff(tarikh,D100 )) ->  | Q100: =IF(OR(tarihk2="",'راس گیری چک'!$O100=""), "", Diff(tarihk2,'راس گیری چک'!$O100)) -> 
F101: =IF(OR(tarikh="",D101=""), "", Diff(tarikh,D101 )) ->  | Q101: =IF(OR(tarihk2="",'راس گیری چک'!$O101=""), "", Diff(tarihk2,'راس گیری چک'!$O101)) -> 
F102: =IF(OR(tarikh="",D102=""), "", Diff(tarikh,D102 )) ->  | Q102: =IF(OR(tarihk2="",'راس گیری چک'!$O102=""), "", Diff(tarihk2,'راس گیری چک'!$O102)) -> 
F103: =IF(OR(tarikh="",D103=""), "", Diff(tarikh,D103 )) ->  | Q103: =IF(OR(tarihk2="",'راس گیری چک'!$O103=""), "", Diff(tarihk2,'راس گیری چک'!$O103)) -> 
F104: =IF(OR(tarikh="",D104=""), "", Diff(tarikh,D104 )) ->  | Q104: =IF(OR(tarihk2="",'راس گیری چک'!$O104=""), "", Diff(tarihk2,'راس گیری چک'!$O104)) -> 
F105: =IF(OR(tarikh="",D105=""), "", Diff(tarikh,D105 )) ->  | Q105: =IF(OR(tarihk2="",'راس گیری چک'!$O105=""), "", Diff(tarihk2,'راس گیری چک'!$O105)) -> 
F106: =IF(OR(tarikh="",D106=""), "", Diff(tarikh,D106 )) ->  | Q106: =IF(OR(tarihk2="",'راس گیری چک'!$O106=""), "", Diff(tarihk2,'راس گیری چک'!$O106)) -> 
F107: =IF(OR(tarikh="",D107=""), "", Diff(tarikh,D107 )) ->  | Q107: =IF(OR(tarihk2="",'راس گیری چک'!$O107=""), "", Diff(tarihk2,'راس گیری چک'!$O107)) -> 
F108: =IF(OR(tarikh="",D108=""), "", Diff(tarikh,D108 )) ->  | Q108: =IF(OR(tarihk2="",'راس گیری چک'!$O108=""), "", Diff(tarihk2,'راس گیری چک'!$O108)) -> 
F109: =IF(OR(tarikh="",D109=""), "", Diff(tarikh,D109 )) ->  | Q109: =IF(OR(tarihk2="",'راس گیری چک'!$O109=""), "", Diff(tarihk2,'راس گیری چک'!$O109)) -> 
F110: =IF(OR(tarikh="",D110=""), "", Diff(tarikh,D110 )) ->  | Q110: =IF(OR(tarihk2="",'راس گیری چک'!$O110=""), "", Diff(tarihk2,'راس گیری چک'!$O110)) -> 
F111: =IF(OR(tarikh="",D111=""), "", Diff(tarikh,D111 )) ->  | Q111: =IF(OR(tarihk2="",'راس گیری چک'!$O111=""), "", Diff(tarihk2,'راس گیری چک'!$O111)) -> 
F112: =IF(OR(tarikh="",D112=""), "", Diff(tarikh,D112 )) ->  | Q112: =IF(OR(tarihk2="",'راس گیری چک'!$O112=""), "", Diff(tarihk2,'راس گیری چک'!$O112)) -> 
F113: =IF(OR(tarikh="",D113=""), "", Diff(tarikh,D113 )) ->  | Q113: =IF(OR(tarihk2="",'راس گیری چک'!$O113=""), "", Diff(tarihk2,'راس گیری چک'!$O113)) -> 
F114: =IF(OR(tarikh="",D114=""), "", Diff(tarikh,D114 )) ->  | Q114: =IF(OR(tarihk2="",'راس گیری چک'!$O114=""), "", Diff(tarihk2,'راس گیری چک'!$O114)) -> 
F115: =IF(OR(tarikh="",D115=""), "", Diff(tarikh,D115 )) ->  | Q115: =IF(OR(tarihk2="",'راس گیری چک'!$O115=""), "", Diff(tarihk2,'راس گیری چک'!$O115)) -> 
F116: =IF(OR(tarikh="",D116=""), "", Diff(tarikh,D116 )) ->  | Q116: =IF(OR(tarihk2="",'راس گیری چک'!$O116=""), "", Diff(tarihk2,'راس گیری چک'!$O116)) -> 
F117: =IF(OR(tarikh="",D117=""), "", Diff(tarikh,D117 )) ->  | Q117: =IF(OR(tarihk2="",'راس گیری چک'!$O117=""), "", Diff(tarihk2,'راس گیری چک'!$O117)) -> 
F118: =IF(OR(tarikh="",D118=""), "", Diff(tarikh,D118 )) ->  | Q118: =IF(OR(tarihk2="",'راس گیری چک'!$O118=""), "", Diff(tarihk2,'راس گیری چک'!$O118)) -> 
F119: =IF(OR(tarikh="",D119=""), "", Diff(tarikh,D119 )) ->  | Q119: =IF(OR(tarihk2="",'راس گیری چک'!$O119=""), "", Diff(tarihk2,'راس گیری چک'!$O119)) -> 
F120: =IF(OR(tarikh="",D120=""), "", Diff(tarikh,D120 )) ->  | Q120: =IF(OR(tarihk2="",'راس گیری چک'!$O120=""), "", Diff(tarihk2,'راس گیری چک'!$O120)) -> 
F121: =IF(OR(tarikh="",D121=""), "", Diff(tarikh,D121 )) ->  | Q121: =IF(OR(tarihk2="",'راس گیری چک'!$O121=""), "", Diff(tarihk2,'راس گیری چک'!$O121)) -> 
F122: =IF(OR(tarikh="",D122=""), "", Diff(tarikh,D122 )) ->  | Q122: =IF(OR(tarihk2="",'راس گیری چک'!$O122=""), "", Diff(tarihk2,'راس گیری چک'!$O122)) -> 
F123: =IF(OR(tarikh="",D123=""), "", Diff(tarikh,D123 )) ->  | Q123: =IF(OR(tarihk2="",'راس گیری چک'!$O123=""), "", Diff(tarihk2,'راس گیری چک'!$O123)) -> 
F124: =IF(OR(tarikh="",D124=""), "", Diff(tarikh,D124 )) ->  | Q124: =IF(OR(tarihk2="",'راس گیری چک'!$O124=""), "", Diff(tarihk2,'راس گیری چک'!$O124)) -> 
F125: =IF(OR(tarikh="",D125=""), "", Diff(tarikh,D125 )) ->  | Q125: =IF(OR(tarihk2="",'راس گیری چک'!$O125=""), "", Diff(tarihk2,'راس گیری چک'!$O125)) -> 
F126: =IF(OR(tarikh="",D126=""), "", Diff(tarikh,D126 )) ->  | Q126: =IF(OR(tarihk2="",'راس گیری چک'!$O126=""), "", Diff(tarihk2,'راس گیری چک'!$O126)) -> 
F127: =IF(OR(tarikh="",D127=""), "", Diff(tarikh,D127 )) ->  | Q127: =IF(OR(tarihk2="",'راس گیری چک'!$O127=""), "", Diff(tarihk2,'راس گیری چک'!$O127)) -> 
F128: =IF(OR(tarikh="",D128=""), "", Diff(tarikh,D128 )) ->  | Q128: =IF(OR(tarihk2="",'راس گیری چک'!$O128=""), "", Diff(tarihk2,'راس گیری چک'!$O128)) -> 
F129: =IF(OR(tarikh="",D129=""), "", Diff(tarikh,D129 )) ->  | Q129: =IF(OR(tarihk2="",'راس گیری چک'!$O129=""), "", Diff(tarihk2,'راس گیری چک'!$O129)) -> 
F130: =IF(OR(tarikh="",D130=""), "", Diff(tarikh,D130 )) ->  | Q130: =IF(OR(tarihk2="",'راس گیری چک'!$O130=""), "", Diff(tarihk2,'راس گیری چک'!$O130)) -> 
F131: =IF(OR(tarikh="",D131=""), "", Diff(tarikh,D131 )) ->  | Q131: =IF(OR(tarihk2="",'راس گیری چک'!$O131=""), "", Diff(tarihk2,'راس گیری چک'!$O131)) -> 
F132: =IF(OR(tarikh="",D132=""), "", Diff(tarikh,D132 )) ->  | Q132: =IF(OR(tarihk2="",'راس گیری چک'!$O132=""), "", Diff(tarihk2,'راس گیری چک'!$O132)) -> 
F133: =IF(OR(tarikh="",D133=""), "", Diff(tarikh,D133 )) ->  | Q133: =IF(OR(tarihk2="",'راس گیری چک'!$O133=""), "", Diff(tarihk2,'راس گیری چک'!$O133)) -> 
F134: =IF(OR(tarikh="",D134=""), "", Diff(tarikh,D134 )) ->  | Q134: =IF(OR(tarihk2="",'راس گیری چک'!$O134=""), "", Diff(tarihk2,'راس گیری چک'!$O134)) -> 
F135: =IF(OR(tarikh="",D135=""), "", Diff(tarikh,D135 )) ->  | Q135: =IF(OR(tarihk2="",'راس گیری چک'!$O135=""), "", Diff(tarihk2,'راس گیری چک'!$O135)) -> 
F136: =IF(OR(tarikh="",D136=""), "", Diff(tarikh,D136 )) ->  | Q136: =IF(OR(tarihk2="",'راس گیری چک'!$O136=""), "", Diff(tarihk2,'راس گیری چک'!$O136)) -> 
F137: =IF(OR(tarikh="",D137=""), "", Diff(tarikh,D137 )) ->  | Q137: =IF(OR(tarihk2="",'راس گیری چک'!$O137=""), "", Diff(tarihk2,'راس گیری چک'!$O137)) -> 
F138: =IF(OR(tarikh="",D138=""), "", Diff(tarikh,D138 )) ->  | Q138: =IF(OR(tarihk2="",'راس گیری چک'!$O138=""), "", Diff(tarihk2,'راس گیری چک'!$O138)) -> 
F139: =IF(OR(tarikh="",D139=""), "", Diff(tarikh,D139 )) ->  | Q139: =IF(OR(tarihk2="",'راس گیری چک'!$O139=""), "", Diff(tarihk2,'راس گیری چک'!$O139)) -> 
F140: =IF(OR(tarikh="",D140=""), "", Diff(tarikh,D140 )) ->  | Q140: =IF(OR(tarihk2="",'راس گیری چک'!$O140=""), "", Diff(tarihk2,'راس گیری چک'!$O140)) -> 
F141: =IF(OR(tarikh="",D141=""), "", Diff(tarikh,D141 )) ->  | Q141: =IF(OR(tarihk2="",'راس گیری چک'!$O141=""), "", Diff(tarihk2,'راس گیری چک'!$O141)) -> 
F142: =IF(OR(tarikh="",D142=""), "", Diff(tarikh,D142 )) ->  | Q142: =IF(OR(tarihk2="",'راس گیری چک'!$O142=""), "", Diff(tarihk2,'راس گیری چک'!$O142)) -> 
F143: =IF(OR(tarikh="",D143=""), "", Diff(tarikh,D143 )) ->  | Q143: =IF(OR(tarihk2="",'راس گیری چک'!$O143=""), "", Diff(tarihk2,'راس گیری چک'!$O143)) -> 
F144: =IF(OR(tarikh="",D144=""), "", Diff(tarikh,D144 )) ->  | Q144: =IF(OR(tarihk2="",'راس گیری چک'!$O144=""), "", Diff(tarihk2,'راس گیری چک'!$O144)) -> 
F145: =IF(OR(tarikh="",D145=""), "", Diff(tarikh,D145 )) ->  | Q145: =IF(OR(tarihk2="",'راس گیری چک'!$O145=""), "", Diff(tarihk2,'راس گیری چک'!$O145)) -> 
F146: =IF(OR(tarikh="",D146=""), "", Diff(tarikh,D146 )) ->  | Q146: =IF(OR(tarihk2="",'راس گیری چک'!$O146=""), "", Diff(tarihk2,'راس گیری چک'!$O146)) -> 
F147: =IF(OR(tarikh="",D147=""), "", Diff(tarikh,D147 )) ->  | Q147: =IF(OR(tarihk2="",'راس گیری چک'!$O147=""), "", Diff(tarihk2,'راس گیری چک'!$O147)) -> 
F148: =IF(OR(tarikh="",D148=""), "", Diff(tarikh,D148 )) ->  | Q148: =IF(OR(tarihk2="",'راس گیری چک'!$O148=""), "", Diff(tarihk2,'راس گیری چک'!$O148)) -> 
F149: =IF(OR(tarikh="",D149=""), "", Diff(tarikh,D149 )) ->  | Q149: =IF(OR(tarihk2="",'راس گیری چک'!$O149=""), "", Diff(tarihk2,'راس گیری چک'!$O149)) -> 
F150: =IF(OR(tarikh="",D150=""), "", Diff(tarikh,D150 )) ->  | Q150: =IF(OR(tarihk2="",'راس گیری چک'!$O150=""), "", Diff(tarihk2,'راس گیری چک'!$O150)) -> 
F151: =IF(OR(tarikh="",D151=""), "", Diff(tarikh,D151 )) ->  | Q151: =IF(OR(tarihk2="",'راس گیری چک'!$O151=""), "", Diff(tarihk2,'راس گیری چک'!$O151)) -> 
F152: =IF(OR(tarikh="",D152=""), "", Diff(tarikh,D152 )) ->  | Q152: =IF(OR(tarihk2="",'راس گیری چک'!$O152=""), "", Diff(tarihk2,'راس گیری چک'!$O152)) -> 
F153: =IF(OR(tarikh="",D153=""), "", Diff(tarikh,D153 )) ->  | Q153: =IF(OR(tarihk2="",'راس گیری چک'!$O153=""), "", Diff(tarihk2,'راس گیری چک'!$O153)) -> 
F154: =IF(OR(tarikh="",D154=""), "", Diff(tarikh,D154 )) ->  | Q154: =IF(OR(tarihk2="",'راس گیری چک'!$O154=""), "", Diff(tarihk2,'راس گیری چک'!$O154)) -> 
F155: =IF(OR(tarikh="",D155=""), "", Diff(tarikh,D155 )) ->  | Q155: =IF(OR(tarihk2="",'راس گیری چک'!$O155=""), "", Diff(tarihk2,'راس گیری چک'!$O155)) -> 
F156: =IF(OR(tarikh="",D156=""), "", Diff(tarikh,D156 )) ->  | Q156: =IF(OR(tarihk2="",'راس گیری چک'!$O156=""), "", Diff(tarihk2,'راس گیری چک'!$O156)) -> 
F157: =IF(OR(tarikh="",D157=""), "", Diff(tarikh,D157 )) ->  | Q157: =IF(OR(tarihk2="",'راس گیری چک'!$O157=""), "", Diff(tarihk2,'راس گیری چک'!$O157)) -> 
F158: =IF(OR(tarikh="",D158=""), "", Diff(tarikh,D158 )) ->  | Q158: =IF(OR(tarihk2="",'راس گیری چک'!$O158=""), "", Diff(tarihk2,'راس گیری چک'!$O158)) -> 
F159: =IF(OR(tarikh="",D159=""), "", Diff(tarikh,D159 )) ->  | Q159: =IF(OR(tarihk2="",'راس گیری چک'!$O159=""), "", Diff(tarihk2,'راس گیری چک'!$O159)) -> 
F160: =IF(OR(tarikh="",D160=""), "", Diff(tarikh,D160 )) ->  | Q160: =IF(OR(tarihk2="",'راس گیری چک'!$O160=""), "", Diff(tarihk2,'راس گیری چک'!$O160)) -> 
F161: =IF(OR(tarikh="",D161=""), "", Diff(tarikh,D161 )) ->  | Q161: =IF(OR(tarihk2="",'راس گیری چک'!$O161=""), "", Diff(tarihk2,'راس گیری چک'!$O161)) -> 
F162: =IF(OR(tarikh="",D162=""), "", Diff(tarikh,D162 )) ->  | Q162: =IF(OR(tarihk2="",'راس گیری چک'!$O162=""), "", Diff(tarihk2,'راس گیری چک'!$O162)) -> 
F163: =IF(OR(tarikh="",D163=""), "", Diff(tarikh,D163 )) ->  | Q163: =IF(OR(tarihk2="",'راس گیری چک'!$O163=""), "", Diff(tarihk2,'راس گیری چک'!$O163)) -> 
F164: =IF(OR(tarikh="",D164=""), "", Diff(tarikh,D164 )) ->  | Q164: =IF(OR(tarihk2="",'راس گیری چک'!$O164=""), "", Diff(tarihk2,'راس گیری چک'!$O164)) -> 
F165: =IF(OR(tarikh="",D165=""), "", Diff(tarikh,D165 )) ->  | Q165: =IF(OR(tarihk2="",'راس گیری چک'!$O165=""), "", Diff(tarihk2,'راس گیری چک'!$O165)) -> 
F166: =IF(OR(tarikh="",D166=""), "", Diff(tarikh,D166 )) ->  | Q166: =IF(OR(tarihk2="",'راس گیری چک'!$O166=""), "", Diff(tarihk2,'راس گیری چک'!$O166)) -> 
F167: =IF(OR(tarikh="",D167=""), "", Diff(tarikh,D167 )) ->  | Q167: =IF(OR(tarihk2="",'راس گیری چک'!$O167=""), "", Diff(tarihk2,'راس گیری چک'!$O167)) -> 
F168: =IF(OR(tarikh="",D168=""), "", Diff(tarikh,D168 )) ->  | Q168: =IF(OR(tarihk2="",'راس گیری چک'!$O168=""), "", Diff(tarihk2,'راس گیری چک'!$O168)) -> 
F169: =IF(OR(tarikh="",D169=""), "", Diff(tarikh,D169 )) ->  | Q169: =IF(OR(tarihk2="",'راس گیری چک'!$O169=""), "", Diff(tarihk2,'راس گیری چک'!$O169)) -> 
F170: =IF(OR(tarikh="",D170=""), "", Diff(tarikh,D170 )) ->  | Q170: =IF(OR(tarihk2="",'راس گیری چک'!$O170=""), "", Diff(tarihk2,'راس گیری چک'!$O170)) -> 
F171: =IF(OR(tarikh="",D171=""), "", Diff(tarikh,D171 )) ->  | Q171: =IF(OR(tarihk2="",'راس گیری چک'!$O171=""), "", Diff(tarihk2,'راس گیری چک'!$O171)) -> 
F172: =IF(OR(tarikh="",D172=""), "", Diff(tarikh,D172 )) ->  | Q172: =IF(OR(tarihk2="",'راس گیری چک'!$O172=""), "", Diff(tarihk2,'راس گیری چک'!$O172)) -> 
F173: =IF(OR(tarikh="",D173=""), "", Diff(tarikh,D173 )) ->  | Q173: =IF(OR(tarihk2="",'راس گیری چک'!$O173=""), "", Diff(tarihk2,'راس گیری چک'!$O173)) -> 
F174: =IF(OR(tarikh="",D174=""), "", Diff(tarikh,D174 )) ->  | Q174: =IF(OR(tarihk2="",'راس گیری چک'!$O174=""), "", Diff(tarihk2,'راس گیری چک'!$O174)) -> 
F175: =IF(OR(tarikh="",D175=""), "", Diff(tarikh,D175 )) ->  | Q175: =IF(OR(tarihk2="",'راس گیری چک'!$O175=""), "", Diff(tarihk2,'راس گیری چک'!$O175)) -> 
F176: =IF(OR(tarikh="",D176=""), "", Diff(tarikh,D176 )) ->  | Q176: =IF(OR(tarihk2="",'راس گیری چک'!$O176=""), "", Diff(tarihk2,'راس گیری چک'!$O176)) -> 
F177: =IF(OR(tarikh="",D177=""), "", Diff(tarikh,D177 )) ->  | Q177: =IF(OR(tarihk2="",'راس گیری چک'!$O177=""), "", Diff(tarihk2,'راس گیری چک'!$O177)) -> 
F178: =IF(OR(tarikh="",D178=""), "", Diff(tarikh,D178 )) ->  | Q178: =IF(OR(tarihk2="",'راس گیری چک'!$O178=""), "", Diff(tarihk2,'راس گیری چک'!$O178)) -> 
F179: =IF(OR(tarikh="",D179=""), "", Diff(tarikh,D179 )) ->  | Q179: =IF(OR(tarihk2="",'راس گیری چک'!$O179=""), "", Diff(tarihk2,'راس گیری چک'!$O179)) -> 
F180: =IF(OR(tarikh="",D180=""), "", Diff(tarikh,D180 )) ->  | Q180: =IF(OR(tarihk2="",'راس گیری چک'!$O180=""), "", Diff(tarihk2,'راس گیری چک'!$O180)) -> 
F181: =IF(OR(tarikh="",D181=""), "", Diff(tarikh,D181 )) ->  | Q181: =IF(OR(tarihk2="",'راس گیری چک'!$O181=""), "", Diff(tarihk2,'راس گیری چک'!$O181)) -> 
F182: =IF(OR(tarikh="",D182=""), "", Diff(tarikh,D182 )) ->  | Q182: =IF(OR(tarihk2="",'راس گیری چک'!$O182=""), "", Diff(tarihk2,'راس گیری چک'!$O182)) -> 
F183: =IF(OR(tarikh="",D183=""), "", Diff(tarikh,D183 )) ->  | Q183: =IF(OR(tarihk2="",'راس گیری چک'!$O183=""), "", Diff(tarihk2,'راس گیری چک'!$O183)) -> 
F184: =IF(OR(tarikh="",D184=""), "", Diff(tarikh,D184 )) ->  | Q184: =IF(OR(tarihk2="",'راس گیری چک'!$O184=""), "", Diff(tarihk2,'راس گیری چک'!$O184)) -> 
F185: =IF(OR(tarikh="",D185=""), "", Diff(tarikh,D185 )) ->  | Q185: =IF(OR(tarihk2="",'راس گیری چک'!$O185=""), "", Diff(tarihk2,'راس گیری چک'!$O185)) -> 
F186: =IF(OR(tarikh="",D186=""), "", Diff(tarikh,D186 )) ->  | Q186: =IF(OR(tarihk2="",'راس گیری چک'!$O186=""), "", Diff(tarihk2,'راس گیری چک'!$O186)) -> 
F187: =IF(OR(tarikh="",D187=""), "", Diff(tarikh,D187 )) ->  | Q187: =IF(OR(tarihk2="",'راس گیری چک'!$O187=""), "", Diff(tarihk2,'راس گیری چک'!$O187)) -> 
F188: =IF(OR(tarikh="",D188=""), "", Diff(tarikh,D188 )) ->  | Q188: =IF(OR(tarihk2="",'راس گیری چک'!$O188=""), "", Diff(tarihk2,'راس گیری چک'!$O188)) -> 
F189: =IF(OR(tarikh="",D189=""), "", Diff(tarikh,D189 )) ->  | Q189: =IF(OR(tarihk2="",'راس گیری چک'!$O189=""), "", Diff(tarihk2,'راس گیری چک'!$O189)) -> 
F190: =IF(OR(tarikh="",D190=""), "", Diff(tarikh,D190 )) ->  | Q190: =IF(OR(tarihk2="",'راس گیری چک'!$O190=""), "", Diff(tarihk2,'راس گیری چک'!$O190)) -> 
F191: =IF(OR(tarikh="",D191=""), "", Diff(tarikh,D191 )) ->  | Q191: =IF(OR(tarihk2="",'راس گیری چک'!$O191=""), "", Diff(tarihk2,'راس گیری چک'!$O191)) -> 
F192: =IF(OR(tarikh="",D192=""), "", Diff(tarikh,D192 )) ->  | Q192: =IF(OR(tarihk2="",'راس گیری چک'!$O192=""), "", Diff(tarihk2,'راس گیری چک'!$O192)) -> 
F193: =IF(OR(tarikh="",D193=""), "", Diff(tarikh,D193 )) ->  | Q193: =IF(OR(tarihk2="",'راس گیری چک'!$O193=""), "", Diff(tarihk2,'راس گیری چک'!$O193)) -> 
F194: =IF(OR(tarikh="",D194=""), "", Diff(tarikh,D194 )) ->  | Q194: =IF(OR(tarihk2="",'راس گیری چک'!$O194=""), "", Diff(tarihk2,'راس گیری چک'!$O194)) -> 
F195: =IF(OR(tarikh="",D195=""), "", Diff(tarikh,D195 )) ->  | Q195: =IF(OR(tarihk2="",'راس گیری چک'!$O195=""), "", Diff(tarihk2,'راس گیری چک'!$O195)) -> 
F196: =IF(OR(tarikh="",D196=""), "", Diff(tarikh,D196 )) ->  | Q196: =IF(OR(tarihk2="",'راس گیری چک'!$O196=""), "", Diff(tarihk2,'راس گیری چک'!$O196)) -> 
F197: =IF(OR(tarikh="",D197=""), "", Diff(tarikh,D197 )) ->  | Q197: =IF(OR(tarihk2="",'راس گیری چک'!$O197=""), "", Diff(tarihk2,'راس گیری چک'!$O197)) -> 
F198: =IF(OR(tarikh="",D198=""), "", Diff(tarikh,D198 )) ->  | Q198: =IF(OR(tarihk2="",'راس گیری چک'!$O198=""), "", Diff(tarihk2,'راس گیری چک'!$O198)) -> 
F199: =IF(OR(tarikh="",D199=""), "", Diff(tarikh,D199 )) ->  | Q199: =IF(OR(tarihk2="",'راس گیری چک'!$O199=""), "", Diff(tarihk2,'راس گیری چک'!$O199)) -> 
F200: =IF(OR(tarikh="",D200=""), "", Diff(tarikh,D200 )) ->  | Q200: =IF(OR(tarihk2="",'راس گیری چک'!$O200=""), "", Diff(tarihk2,'راس گیری چک'!$O200)) -> 
F201: =IF(OR(tarikh="",D201=""), "", Diff(tarikh,D201 )) ->  | Q201: =IF(OR(tarihk2="",'راس گیری چک'!$O201=""), "", Diff(tarihk2,'راس گیری چک'!$O201)) -> 
F202: =IF(OR(tarikh="",D202=""), "", Diff(tarikh,D202 )) ->  | Q202: =IF(OR(tarihk2="",'راس گیری چک'!$O202=""), "", Diff(tarihk2,'راس گیری چک'!$O202)) -> 
... 308 more rows
